fUSD/lending_fUSD_20260426
["ID","MTS","AMOUNT","RATE_DAILY","PERIOD"]
[421168196,1777188708740,-500.0,0.0003863,15]
[421168197,1777188708750,-500.0,0.0003863,15]
[421168198,1777188708761,-500.0,0.0003863,15]
[421168199,1777188708772,-500.0,0.0003863,15]
[421168200,1777188708782,-500.0,0.0003863,15]
[421168201,1777188708792,-1671.16,0.0003863,15]
[421168202,1777188708803,-1531.96,0.0003863,15]
[421168203,1777188708813,-2225.71,0.0003863,15]
[421168204,1777188708822,-934.68,0.0003863,15]
[421168205,1777188708833,-500.0,0.0003863,15]
[421168206,1777188708843,-500.0,0.0003863,15]
[421168207,1777188708854,-500.0,0.0003863,15]
[421168208,1777188708864,-500.0,0.0003863,12]
[421168209,1777188708874,-1522.47,0.0003863,15]
[421168210,1777188708883,-500.0,0.0003863,15]
[421168211,1777188708894,-894.3,0.0003863,15]
[421168212,1777188708903,-2473.24,0.0003863,15]
[421168213,1777188708912,-1358.93,0.0003863,15]
[421168214,1777188708922,-872.26,0.0003863,15]
[421168215,1777188708932,-500.0,0.0003863,15]
[421168216,1777188708942,-1642.91,0.0003863,15]
[421168217,1777188708952,-500.0,0.0003863,15]
[421168218,1777188708963,-1027.29,0.0003863,15]
[421168219,1777188708973,-500.0,0.0003863,15]
[421168220,1777188708982,-500.0,0.0003863,15]
[421168221,1777188708992,-500.0,0.0003863,15]
[421168222,1777188709002,-1006.0,0.0003863,15]
[421168223,1777188709012,-500.0,0.0003863,15]
[421168224,1777188709023,-500.0,0.0003863,15]
[421168225,1777188709033,-801.31,0.0003863,15]
[421168226,1777188709044,-500.0,0.0003863,15]
[421168227,1777188709054,-500.0,0.0003863,15]
[421168228,1777188709064,-500.0,0.0003863,15]
[421168229,1777188709073,-1100.16,0.0003863,15]
[421168230,1777188709083,-500.0,0.0003863,15]
[421168231,1777188709093,-606.33838279,0.0003863,15]
[421168232,1777188709103,-500.0,0.0003863,15]
[421168233,1777188709113,-1288.23,0.0003863,15]
[421168234,1777188709123,-500.0,0.0003863,15]
[421168235,1777188709133,-500.0,0.0003863,15]
[421168236,1777188709142,-552.71,0.0003863,15]
[421168237,1777188709152,-500.0,0.0003863,15]
[421168238,1777188709164,-500.0,0.0003863,15]
[421168239,1777188709175,-594.5449595,0.0003863,15]
[421168240,1777188709185,-500.0,0.0003863,15]
[421168241,1777188709195,-500.0,0.0003863,15]
[421168242,1777188709205,-500.0,0.0003863,15]
[421168243,1777188709215,-500.0,0.0003863,15]
[421168244,1777188709225,-1677.38,0.0003863,15]
[421168245,1777188709235,-1627.8,0.0003863,15]
[421168246,1777188709246,-208.57370645,0.0003863,15]
[421168247,1777188709256,-500.0,0.0003863,15]
[421168248,1777188709266,-500.0,0.0003863,15]
[421168249,1777188709276,-781.79,0.0003863,15]
[421168250,1777188709286,-500.0,0.0003863,15]
[421168251,1777188709297,-1068.12,0.0003863,15]
[421168252,1777188709307,-500.0,0.0003863,15]
[421168253,1777188709317,-1323.09,0.0003863,15]
[421168254,1777188709327,-1437.06,0.0003863,15]
[421168255,1777188709337,-414.71256659,0.0003863,15]
[421168256,1777188709348,-500.0,0.0003863,15]
[421168257,1777188709358,-840.22,0.0003863,15]
[421168258,1777188709367,-500.0,0.0003863,15]
[421168259,1777188709377,-1473.32,0.0003863,15]
[421168260,1777188709387,-500.0,0.0003863,15]
[421168261,1777188709397,-583.15,0.0003863,15]
[421168262,1777188709407,-958.75063476,0.0003863,15]
[421168263,1777188709970,-76.96936524,0.0003863,15]
[421168264,1777188709980,-286.25930918,0.0003863,15]
[421168265,1777188709993,-1830.33069082,0.0003863,15]
[421168266,1777188710003,-500.0,0.0003863,15]
[421168267,1777188710012,-236.27332347,0.0003863,15]
[421168268,1777188710590,-263.72667653,0.0003863,15]
[421168269,1777188710600,-500.0,0.0003863,15]
[421168270,1777188710610,-500.0,0.0003863,15]
[421168271,1777188710619,-500.0,0.0003863,15]
[421168272,1777188710628,-522.3850004,0.0003863,15]
[421168273,1777188710638,-600.87,0.0003863,15]
[421168274,1777188710648,-500.0,0.0003863,15]
[421168275,1777188710657,-500.0,0.0003863,15]
[421168276,1777188710668,-500.0,0.0003863,15]
[421168277,1777188710678,-500.0,0.0003863,15]
[421168278,1777188710688,-500.0,0.0003863,15]
[421168279,1777188710698,-621.43,0.0003863,15]
[421168280,1777188710708,-500.0,0.0003863,15]
[421168281,1777188710717,-1870.33,0.0003863,15]
[421168282,1777188710727,-2364.44,0.0003863,15]
[421168283,1777188710737,-1216.3,0.0003863,15]
[421168284,1777188710746,-803.06,0.0003863,15]
[421168285,1777188710756,-842.05,0.0003863,15]
[421168286,1777188710766,-519.44,0.0003863,15]
[421168287,1777188710776,-500.0,0.0003863,15]
[421168288,1777188710786,-500.0,0.0003863,15]
[421168289,1777188710796,-540.3,0.0003863,15]
[421168290,1777188710805,-500.0,0.0003863,15]
[421168291,1777188710815,-500.0,0.0003863,15]
[421168292,1777188710824,-2232.09,0.0003863,15]
[421168293,1777188710833,-500.0,0.0003863,15]
[421168294,1777188710843,-1908.11,0.0003863,15]
[421168295,1777188710852,-500.0,0.0003863,15]
[421168296,1777188710862,-527.87,0.0003863,15]
[421168297,1777188710872,-500.0,0.0003863,15]
[421168298,1777188710882,-500.0,0.0003863,15]
[421168299,1777188710893,-500.0,0.0003863,15]
[421168300,1777188710902,-500.0,0.0003863,15]
[421168301,1777188710913,-2846.84,0.0003863,15]
[421168302,1777188710923,-500.0,0.0003863,15]
[421168303,1777188710932,-670.37,0.0003863,15]
[421168304,1777188710942,-753.07,0.0003863,15]
[421168305,1777188710952,-1838.66,0.0003863,15]
[421168306,1777188710961,-500.0,0.0003863,15]
[421168307,1777188710971,-500.0,0.0003863,15]
[421168308,1777188710980,-629.13,0.0003863,15]
[421168309,1777188710990,-500.0,0.0003863,15]
[421168310,1777188710999,-500.0,0.0003863,15]
[421168311,1777188711009,-1876.72,0.0003863,15]
[421168312,1777188711019,-1079.95,0.0003863,15]
[421168313,1777188711029,-121.23622472,0.0003863,15]
[421168314,1777188711043,-378.76377528,0.0003863,15]
[421168315,1777188711053,-738.6,0.0003863,15]
[421168316,1777188711063,-833.92,0.0003863,15]
[421168317,1777188711072,-500.0,0.0003863,15]
[421168318,1777188711081,-500.0,0.0003863,15]
[421168319,1777188711090,-1225.64,0.0003863,15]
[421168320,1777188711099,-550.1,0.0003863,15]
[421168321,1777188711109,-500.0,0.0003863,15]
[421168322,1777188711119,-500.0,0.0003863,15]
[421168323,1777188711129,-1061.98,0.0003863,15]
[421168324,1777188711139,-500.0,0.0003863,15]
[421168325,1777188711149,-500.0,0.0003863,15]
[421168326,1777188711160,-500.0,0.0003863,15]
[421168327,1777188711170,-500.0,0.0003863,15]
[421168328,1777188711180,-1723.48,0.0003863,15]
[421168329,1777188711189,-500.0,0.0003863,15]
[421168330,1777188711199,-689.09,0.0003863,15]
[421168331,1777188711209,-500.0,0.0003863,15]
[421168332,1777188711219,-500.0,0.0003863,15]
[421168333,1777188711229,-500.0,0.0003863,15]
[421168334,1777188711239,-648.18,0.0003863,15]
[421168335,1777188711249,-1128.22,0.0003863,15]
[421168336,1777188711259,-972.03,0.0003863,15]
[421168337,1777188711270,-500.0,0.0003863,15]
[421168338,1777188711281,-1122.6,0.0003863,15]
[421168339,1777188711291,-500.0,0.0003863,15]
[421168340,1777188711301,-500.0,0.0003863,15]
[421168341,1777188711311,-500.0,0.0003863,15]
[421168342,1777188711322,-500.0,0.0003863,15]
[421168343,1777188711331,-500.0,0.0003863,15]
[421168344,1777188711341,-1543.14,0.0003863,15]
[421168345,1777188711351,-500.0,0.0003863,15]
[421168346,1777188711362,-500.0,0.0003863,15]
[421168347,1777188711372,-500.0,0.0003863,15]
[421168348,1777188711382,-1673.98,0.0003863,15]
[421168349,1777188711392,-500.0,0.0003863,15]
[421168350,1777188711402,-500.0,0.0003863,15]
[421168351,1777188711411,-500.0,0.0003863,15]
[421168352,1777188711421,-1019.21,0.0003863,15]
[421168353,1777188711431,-500.0,0.0003863,15]
[421168354,1777188711440,-693.7,0.0003863,15]
[421168355,1777188711450,-500.0,0.0003863,15]
[421168356,1777188711460,-500.0,0.0003863,15]
[421168357,1777188711470,-616.37,0.0003863,15]
[421168358,1777188711480,-500.0,0.0003863,15]
[421168359,1777188711490,-500.0,0.0003863,15]
[421168360,1777188711503,-500.0,0.0003863,15]
[421168361,1777188711513,-432.16523303,0.0003863,15]
[421168362,1777188711523,-500.0,0.0003863,15]
[421168363,1777188711533,-1077.19,0.0003863,15]
[421168364,1777188711542,-500.0,0.0003863,15]
[421168365,1777188711552,-1201.83,0.0003863,15]
[421168366,1777188711562,-500.0,0.0003863,15]
[421168367,1777188711573,-500.0,0.0003863,15]
[421168368,1777188711583,-500.0,0.0003863,15]
[421168369,1777188711593,-882.98,0.0003863,5]
[421168370,1777188711603,-500.0,0.0003863,15]
[421168371,1777188711612,-571.13,0.0003863,15]
[421168372,1777188711622,-532.65,0.0003863,15]
[421168373,1777188711631,-532.67,0.0003863,15]
[421168374,1777188711642,-500.0,0.0003863,15]
[421168375,1777188711652,-552.39,0.0003863,15]
[421168376,1777188711662,-1834.85,0.0003863,15]
[421168377,1777188711673,-892.83,0.0003863,15]
[421168378,1777188711682,-1534.49,0.0003863,15]
[421168379,1777188711692,-972.12,0.0003863,15]
[421168380,1777188711702,-500.0,0.0003863,15]
[421168381,1777188711711,-551.58,0.0003863,15]
[421168382,1777188711721,-1750.29,0.0003863,15]
[421168383,1777188711731,-55.31532136,0.0003863,7]
[421168384,1777188711771,-829.67010334,0.0003863,7]
[421168385,1777188711785,-52.9145753,0.0003863,7]
[421168386,1777188711794,-306.495789,0.0003863,15]
[421168387,1777188711818,-193.504211,0.0003863,15]
[421168388,1777188711828,-500.0,0.0003863,15]
[421168389,1777188711837,-993.58,0.0003863,15]
[421168390,1777188711847,-500.0,0.0003863,15]
[421168391,1777188711857,-530.46,0.0003863,15]
[421168392,1777188711867,-500.0,0.0003863,15]
[421168393,1777188711876,-520.62,0.0003863,15]
[421168394,1777188711886,-1262.100317,0.0003863,15]
[421168395,1777188711898,-279.29345113,0.0003863,15]
[421168396,1777188711922,-432.33533711,0.0003863,15]
[421168397,1777188711933,-22.08089476,0.0003863,15]
[421168398,1777188711943,-525.77,0.0003863,15]
[421168399,1777188711952,-500.0,0.0003863,15]
[421168400,1777188711962,-500.0,0.0003863,15]
[421168401,1777188711972,-1130.63631967,0.0003863,15]
[421168402,1777188712130,-473.93335833,0.00011063,2]
[421168403,1777188712681,-500.0,6.843e-05,2]
[421168404,1777188712691,-500.0,6.843e-05,2]
[421168405,1777188712701,-500.0,6.843e-05,2]
[421168406,1777188712711,-500.0,6.843e-05,2]
[421168407,1777188712721,-154.02004256,6.843e-05,2]
[421168408,1777188712731,-500.0,6.843e-05,2]
[421168409,1777188712741,-500.0,6.843e-05,2]
[421168410,1777188712751,-500.0,6.843e-05,2]
[421168411,1777188712761,-500.0,6.843e-05,2]
[421168412,1777188712771,-500.0,6.843e-05,2]
[421168413,1777188712780,-266.9086894,6.843e-05,2]
[421168414,1777188712817,-233.0913106,6.843e-05,2]
[421168415,1777188712827,-500.0,6.843e-05,2]
[421168416,1777188712838,-500.0,6.843e-05,2]
[421168417,1777188712848,-500.0,6.843e-05,2]
[421168418,1777188712858,-500.0,6.843e-05,2]
[421168419,1777188712868,-500.0,6.843e-05,2]
[421168420,1777188712878,-500.0,6.843e-05,2]
[421168421,1777188712888,-500.0,6.843e-05,2]
[421168422,1777188712897,-500.0,6.843e-05,2]
[421168423,1777188712907,-500.0,6.843e-05,2]
[421168424,1777188712917,-1526.06664167,0.00011063,2]
[421168425,1777188712927,-2056.8,0.00027397,10]
[421168426,1777188712936,-821.79368033,0.0003863,15]
[421168427,1777188712946,-518.57,0.0003863,15]
[421168428,1777188712956,-449.13038317,0.0003863,15]
[421168429,1777188715037,300.0,6.842e-05,2]
[421168430,1777188729129,-500.0,6.843e-05,2]
[421168431,1777188729164,-500.0,6.843e-05,2]
[421168432,1777188729198,-500.0,6.843e-05,2]
[421168433,1777188729232,-252.83222184,6.843e-05,2]
[421168434,1777188729266,-500.0,6.843e-05,2]
[421168435,1777188729299,-500.0,6.843e-05,2]
[421168436,1777188729335,-500.0,6.843e-05,2]
[421168437,1777188729369,-500.0,6.843e-05,2]
[421168438,1777188729402,-500.0,6.843e-05,2]
[421168439,1777188729435,-500.0,6.843e-05,2]
[421168440,1777188729488,-500.0,6.843e-05,2]
[421168441,1777188763109,500.0,6.844e-05,2]
[421168442,1777188776068,-250.0,7.527e-05,2]
[421168443,1777188789781,21750.0,6.844e-05,2]
[421168444,1777188794371,-7114.18349339,6.844e-05,2]
[421168445,1777188794571,-10000.01,6.844e-05,2]
[421168446,1777188794852,-10000.01,6.844e-05,2]
[421168447,1777188796383,-10000.01,6.844e-05,2]
[421168448,1777188796420,-10000.01,6.844e-05,2]
[421168449,1777188796449,-10000.01,6.844e-05,2]
[421168450,1777188796474,-10000.01,6.844e-05,2]
[421168451,1777188796493,-10000.01,6.844e-05,2]
[421168452,1777188796521,-10000.01,6.844e-05,2]
[421168453,1777188797766,-10000.01,6.844e-05,2]
[421168454,1777188798967,-10000.01,6.844e-05,2]
[421168455,1777188801313,-4519854.45990036,0.00043053,120]
[421168456,1777188801368,-242.79576807,0.00043053,120]
[421168457,1777188801422,-5000.0,0.00043053,30]
[421168458,1777188801476,-413.33803352,0.00043053,120]
[421168459,1777188801530,-451588.50760442,0.00043053,30]
[421168460,1777188801587,-500.0,0.00043053,30]
[421168461,1777188801641,-500.0,0.00043053,30]
[421168462,1777188801697,-500.0,0.00043053,30]
[421168463,1777188801752,-493.50795801,0.00043053,30]
[421168464,1777188801806,-500.0,0.00043053,30]
[421168465,1777188801860,-500.0,0.00043053,30]
[421168466,1777188801913,-331.14524607,0.00043053,30]
[421168467,1777188801968,-500.0,0.00043053,30]
[421168468,1777188802022,-500.0,0.00043053,30]
[421168469,1777188802078,-500.0,0.00043053,30]
[421168470,1777188802669,-500.0,0.00043053,30]
[421168471,1777188802730,-500.0,0.00043053,30]
[421168472,1777188802787,-500.0,0.00043053,30]
[421168473,1777188802843,-500.0,0.00043053,30]
[421168474,1777188802897,-500.0,0.00043053,30]
[421168475,1777188802960,-500.0,0.00043053,30]
[421168476,1777188803019,-1000.0,0.00043053,120]
[421168477,1777188803077,-500.0,0.00043053,120]
[421168478,1777188803136,-500.0,0.00043053,120]
[421168479,1777188803196,-500.0,0.00043053,120]
[421168480,1777188803256,-500.0,0.00043053,120]
[421168481,1777188803317,-500.0,0.00043053,120]
[421168482,1777188803374,-500.0,0.00043053,120]
[421168483,1777188803429,-500.0,0.00043053,120]
[421168484,1777188803484,-500.0,0.00043053,120]
[421168485,1777188803540,-500.0,0.00043053,120]
[421168486,1777188803596,-500.0,0.00043053,120]
[421168487,1777188803653,-500.0,0.00043053,120]
[421168488,1777188803711,-500.0,0.00043053,120]
[421168489,1777188803768,-500.0,0.00043053,120]
[421168490,1777188803825,-500.0,0.00043053,120]
[421168491,1777188803881,-500.0,0.00043053,120]
[421168492,1777188803936,-500.0,0.00043053,120]
[421168493,1777188803991,-423.0,0.00043053,120]
[421168494,1777188804049,-50000.0,0.00043053,56]
[421168495,1777188804109,-50000.0,0.00043053,57]
[421168496,1777188804171,-50000.0,0.00043053,58]
[421168497,1777188804232,-50000.0,0.00043053,59]
[421168498,1777188804299,-50000.0,0.00043053,120]
[421168499,1777188804357,-500.0,0.00043053,120]
[421168500,1777188804413,-500.0,0.00043053,120]
[421168501,1777188804470,-500.0,0.00043053,120]
[421168502,1777188804527,-500.0,0.00043053,120]
[421168503,1777188804581,-500.0,0.00043053,120]
[421168504,1777188804638,-307.83794531,0.00043053,120]
[421168505,1777188804696,-2029.73,0.00043053,120]
[421168506,1777188804752,-2029.73,0.00043053,120]
[421168507,1777188804808,-2029.73,0.00043053,120]
[421168508,1777188804864,-2029.73,0.00043053,120]
[421168509,1777188804919,-2029.73,0.00043053,120]
[421168510,1777188804975,-2029.73,0.00043053,120]
[421168511,1777188805030,-2029.73,0.00043053,120]
[421168512,1777188805085,-2029.73,0.00043053,120]
[421168513,1777188805140,-2029.73,0.00043053,120]
[421168514,1777188805201,-2029.73,0.00043053,120]
[421168515,1777188805258,-2029.73,0.00043053,120]
[421168516,1777188805316,-2029.73,0.00043053,120]
[421168517,1777188805372,-2029.73,0.00043053,120]
[421168518,1777188805427,-2029.73,0.00043053,120]
[421168519,1777188805483,-2029.73,0.00043053,120]
[421168520,1777188805539,-2029.73,0.00043053,120]
[421168521,1777188805593,-2029.73,0.00043053,120]
[421168522,1777188805650,-2029.73,0.00043053,120]
[421168523,1777188805710,-2029.73,0.00043053,120]
[421168524,1777188805767,-2029.73,0.00043053,120]
[421168525,1777188805822,-2029.73,0.00043053,120]
[421168526,1777188805879,-2029.73,0.00043053,120]
[421168527,1777188805933,-2029.73,0.00043053,120]
[421168528,1777188805987,-2029.93374535,0.00043053,120]
[421168529,1777188806045,-838.4,0.00043053,120]
[421168530,1777188806101,-838.4,0.00043053,120]
[421168531,1777188806155,-838.4,0.00043053,120]
[421168532,1777188806212,-838.4,0.00043053,120]
[421168533,1777188806266,-838.4,0.00043053,120]
[421168534,1777188806321,-838.4,0.00043053,120]
[421168535,1777188806376,-838.4,0.00043053,120]
[421168536,1777188806432,-838.4,0.00043053,120]
[421168537,1777188806487,-838.4,0.00043053,120]
[421168538,1777188806542,-838.4,0.00043053,120]
[421168539,1777188806596,-838.4,0.00043053,120]
[421168540,1777188806650,-838.4,0.00043053,120]
[421168541,1777188806705,-838.4,0.00043053,120]
[421168542,1777188806759,-838.4,0.00043053,120]
[421168543,1777188806814,-838.4,0.00043053,120]
[421168544,1777188806867,-838.4,0.00043053,120]
[421168545,1777188806921,-838.4,0.00043053,120]
[421168546,1777188806975,-838.4,0.00043053,120]
[421168547,1777188807032,-838.4,0.00043053,120]
[421168548,1777188807086,-838.4,0.00043053,120]
[421168549,1777188807139,-838.4,0.00043053,120]
[421168550,1777188807193,-838.4,0.00043053,120]
[421168551,1777188807246,-838.4,0.00043053,120]
[421168552,1777188807302,-838.58356566,0.00043053,120]
[421168553,1777188807360,-500.0,0.00043053,120]
[421168554,1777188807414,-500.0,0.00043053,120]
[421168555,1777188807468,-500.0,0.00043053,120]
[421168556,1777188807521,-500.0,0.00043053,120]
[421168557,1777188807575,-500.0,0.00043053,120]
[421168558,1777188807629,-168.8738572,0.00043053,120]
[421168559,1777188807682,-657.0,0.00043053,120]
[421168560,1777188807734,-77986.516,0.00043053,30]
[421168561,1777188807786,-10000.0,0.00043053,120]
[421168562,1777188807839,-10000.0,0.00043053,120]
[421168563,1777188807893,-10000.0,0.00043053,120]
[421168564,1777188807945,-10000.0,0.00043053,120]
[421168565,1777188808351,-10000.0,0.00043053,120]
[421168566,1777188808405,-10000.0,0.00043053,120]
[421168567,1777188808461,-10000.0,0.00043053,120]
[421168568,1777188808531,-14404.0,0.00043053,120]
[421168569,1777188808585,-5100.0,0.00043053,37]
[421168570,1777188808639,-500.0,0.00043053,120]
[421168571,1777188808691,-500.0,0.00043053,120]
[421168572,1777188808742,-500.0,0.00043053,120]
[421168573,1777188808792,-356.37645362,0.00043053,120]
[421168574,1777188808842,-4951.0,0.00043053,120]
[421168575,1777188808891,-814180.0,0.00043053,90]
[421168576,1777188808941,-150.0,0.00043053,120]
[421168577,1777188808992,-1000.0,0.00043053,30]
[421168578,1777188809041,-36861.46886507,0.00043053,30]
[421168579,1777188809093,-286.28883626,0.00043053,60]
[421168580,1777188809146,-176.2964327,0.00043053,120]
[421168581,1777188809196,-500.0,0.00043053,120]
[421168582,1777188809247,-255.61085704,0.00043053,120]
[421168583,1777188809299,-500.0,0.00043053,120]
[421168584,1777188809350,-500.0,0.00043053,120]
[421168585,1777188809404,-500.0,0.00043053,120]
[421168586,1777188809456,-330.0501685,0.00043053,120]
[421168587,1777188809508,-5209.49294542,0.00043053,120]
[421168588,1777188809559,-122059.04013348,0.00043053,30]
[421168589,1777188809609,-18517.27280353,0.00043053,60]
[421168590,1777188809659,-12665.0688118,0.00043053,60]
[421168591,1777188809710,-37727.77695184,0.00043053,120]
[421168592,1777188809765,-50000.0,0.00043053,60]
[421168593,1777188809823,-50000.0,0.00043053,61]
[421168594,1777188809881,-50000.0,0.00043053,62]
[421168595,1777188809937,-50000.0,0.00043053,63]
[421168596,1777188809991,-5008.94449146,0.00043053,120]
[421168597,1777188810045,-1000.73091338,0.00043053,30]
[421168598,1777188810098,-193.07040023,0.00043053,120]
[421168599,1777188810151,-4798.7469503,0.00043053,120]
[421168600,1777188810202,-469551.57097688,0.00043053,30]
[421168601,1777188810254,-960.97,0.00043053,120]
[421168602,1777188810304,-960.97,0.00043053,120]
[421168603,1777188810356,-960.97,0.00043053,120]
[421168604,1777188810406,-960.97,0.00043053,120]
[421168605,1777188810459,-960.97,0.00043053,120]
[421168606,1777188810511,-960.97,0.00043053,120]
[421168607,1777188810564,-960.97,0.00043053,120]
[421168608,1777188810619,-960.97,0.00043053,120]
[421168609,1777188810672,-960.97,0.00043053,120]
[421168610,1777188810724,-960.97,0.00043053,120]
[421168611,1777188810779,-960.97,0.00043053,120]
[421168612,1777188810835,-960.97,0.00043053,120]
[421168613,1777188810891,-960.97,0.00043053,120]
[421168614,1777188810944,-960.97,0.00043053,120]
[421168615,1777188810999,-960.97,0.00043053,120]
[421168616,1777188811052,-960.97,0.00043053,120]
[421168617,1777188811107,-960.97,0.00043053,120]
[421168618,1777188811161,-960.97,0.00043053,120]
[421168619,1777188811214,-960.97,0.00043053,120]
[421168620,1777188811268,-960.97,0.00043053,120]
[421168621,1777188811323,-960.97,0.00043053,120]
[421168622,1777188811378,-960.97,0.00043053,120]
[421168623,1777188811430,-960.97,0.00043053,120]
[421168624,1777188811484,-961.17871578,0.00043053,120]
[421168625,1777188811537,-500.0,0.00043053,120]
[421168626,1777188811591,-500.0,0.00043053,120]
[421168627,1777188811644,-500.0,0.00043053,120]
[421168628,1777188811698,-500.0,0.00043053,120]
[421168629,1777188811751,-500.0,0.00043053,120]
[421168630,1777188811803,-500.0,0.00043053,120]
[421168631,1777188811856,-500.0,0.00043053,120]
[421168632,1777188811907,-500.0,0.00043053,120]
[421168633,1777188811958,-363.20743609,0.00043053,120]
[421168634,1777188812009,-213675.65,0.00043053,120]
[421168635,1777188812061,-65206.33437238,0.00043053,120]
[421168636,1777188812113,-473.12922517,0.00043053,120]
[421168637,1777188812164,-500.0,0.00043053,31]
[421168638,1777188812215,-500.0,0.00043053,120]
[421168639,1777188812267,-510.63451365,0.00043053,120]
[421168640,1777188812319,-308.50633645,0.00043053,120]
[421168641,1777188812369,-10901.0,0.00043053,120]
[421168642,1777188812421,-240.4,0.00043053,120]
[421168643,1777188812473,-207.77174376,0.00043053,120]
[421168644,1777188812527,-2702.7961973,0.00043053,120]
[421168645,1777188812580,-178.71,0.00043053,60]
[421168646,1777188812633,-164.67255386,0.00043053,120]
[421168647,1777188812688,-5000.0,0.00043053,120]
[421168648,1777188812743,-282.54571641,0.00043053,120]
[421168649,1777188812797,-1605.2123,0.00043053,120]
[421168650,1777188812853,-370.6,0.00043053,120]
[421168651,1777188812904,-247.1,0.00043053,30]
[421168652,1777188812956,-212.35922419,0.00043053,120]
[421168653,1777188813008,-249.65627999,0.00043053,60]
[421168654,1777188813060,-867.0,0.00043053,120]
[421168655,1777188813114,-169.40164398,0.00043053,120]
[421168656,1777188813167,-659999.0,0.00043053,30]
[421168657,1777188813221,-161.34261741,0.00043053,120]
[421168658,1777188813274,-212.560744,0.00043053,120]
[421168659,1777188813327,-753.0,0.00043053,120]
[421168660,1777188813693,-229.91411903,0.00043053,30]
[421168661,1777188813749,-1303.25817241,0.00043053,120]
[421168662,1777188813803,-824.27574511,0.00043053,30]
[421168663,1777188813854,-341.82550721,0.00043053,30]
[421168664,1777188813908,-267.57502557,0.00043053,30]
[421168665,1777188813959,-468.62917716,0.00043053,60]
[421168666,1777188814012,-2527.98794556,0.00043053,120]
[421168667,1777188814065,-318.29222263,0.00043053,60]
[421168668,1777188814118,-150.01192324,0.00043053,30]
[421168669,1777188814171,-166.3678499,0.00043053,30]
[421168670,1777188814225,-251.60225464,0.00043053,30]
[421168671,1777188814279,-436.97059344,0.00043053,30]
[421168672,1777188814331,-621.96576003,0.00043053,30]
[421168673,1777188814383,-261.13404567,0.00043053,30]
[421168674,1777188814434,-385.12578812,0.00043053,30]
[421168675,1777188814487,-675.79826263,0.00043053,120]
[421168676,1777188814541,-568.27379344,0.00043053,30]
[421168677,1777188814593,-1248.31963226,0.00043053,60]
[421168678,1777188814649,-2286.29385587,0.00043053,60]
[421168679,1777188814702,-1168.3209652,0.00043053,120]
[421168680,1777188814755,-662.56793283,0.00043053,30]
[421168681,1777188814808,-740.92884014,0.00043053,120]
[421168682,1777188814862,-713.14365007,0.00043053,30]
[421168683,1777188814914,-494.97242167,0.00043053,30]
[421168684,1777188814967,-800.0,0.00043053,120]
[421168685,1777188815020,-173.16015626,0.00043053,120]
[421168686,1777188815073,-1511.0,0.00043053,120]
[421168687,1777188815131,-3066.1893,0.00043053,120]
[421168688,1777188815184,-5579.37284386,0.00043053,120]
[421168689,1777188815239,-15000.0,0.00043053,120]
[421168690,1777188815293,-1188.41880239,0.00043053,120]
[421168691,1777188815345,-579936.0,0.00043053,60]
[421168692,1777188815397,-1000000.0,0.00043053,120]
[421168693,1777188815450,-3633.2983192,0.00043053,60]
[421168694,1777188815505,-500.0,0.00043053,120]
[421168695,1777188815560,-500.0,0.00043053,120]